bitfinex/quotes_ETHUSD_20250823
["timestamp","ask_amount","ask_price","bid_price","bid_amount"]
[1755950205557,0.96919794,4715.2,4715.1,0.7455]
[1755950206679,0.96919794,4715.2,4714.4,0.004]
[1755950206680,0.97279794,4715.2,4714.4,0.4488]
[1755950207005,0.1064,4714.7,4714.4,0.4488]
[1755950207310,0.1064,4714.7,4714.6,0.3007]
[1755950207483,3.6884,4715.0,4714.6,0.3007]
[1755950207685,4.325775,4715.0,4714.7,0.4448]
[1755950207887,0.637375,4715.0,4714.9,0.3007]
[1755950208072,0.33185494,4715.2,4714.9,0.7455]
[1755950208276,0.33185494,4715.2,4715.0,0.4448]
[1755950208277,0.4448,4715.1,4715.0,0.4448]
[1755950208613,0.4448,4715.1,4715.0,0.7535]
[1755950209619,3.583,4715.7,4715.0,0.7535]
[1755950209780,4.1342,4715.7,4715.0,0.8599]
[1755950210514,4.0278,4715.7,4715.0,0.7535]
[1755950210719,0.1064,4715.3,4715.0,0.3087]
[1755950211083,0.001,4715.1,4715.0,0.3087]
[1755950212300,0.33285261,4715.1,4715.0,0.3087]
[1755950213525,0.33285261,4715.1,4714.8,0.004]
[1755950214123,0.1064,4715.0,4714.8,0.004]
[1755950214511,0.099,4714.9,4714.8,0.004]
[1755950216033,0.1064,4715.0,4714.8,0.004]
[1755950216420,0.5744,4715.0,4714.8,0.004]
[1755950219743,0.5744,4715.0,4714.9,0.3087]
[1755950219947,0.1064,4715.0,4714.9,0.3087]
[1755950220153,0.567,4715.0,4714.8,0.004]
[1755950220435,0.6734,4715.0,4714.8,0.004]
[1755950222408,0.5744,4715.0,4714.9,0.3087]
[1755950222630,0.33285261,4715.1,4714.9,0.3087]
[1755950222631,0.001,4715.1,4714.9,0.7767]
[1755950222833,0.001,4715.1,4715.0,0.468]
[1755950223018,0.001,4715.1,4715.0,0.7767]
[1755950225345,0.001,4715.1,4715.0,0.7543]
[1755950225943,0.33285589,4715.1,4715.0,0.7543]
[1755950226413,0.33405589,4715.1,4714.8,0.004]
[1755950226949,0.1064,4714.9,4714.8,0.004]
[1755950227117,0.1088,4714.9,4714.8,0.004]
[1755950228245,0.1064,4714.9,4714.8,0.004]
[1755950228929,0.1076,4714.9,4714.8,0.004]
[1755950231241,0.1064,4714.9,4714.8,0.3127]
[1755950232139,0.1064,4714.9,4714.8,0.7807]
[1755950232746,0.1064,4714.9,4714.8,0.3127]
[1755950232964,0.33288435,4715.0,4714.8,0.7807]
[1755950233269,0.33288435,4715.0,4714.9,0.468]
[1755950233470,0.66,4714.5,4713.8,0.02]
[1755950233678,3.78169984,4714.4,4713.8,0.02]
[1755950233974,3.811,4714.4,4713.8,0.02]
[1755950234274,0.1064,4714.1,4713.9,0.468]
[1755950234435,0.1064,4714.1,4714.0,0.3087]
[1755950234648,0.1064,4714.1,4714.0,0.7767]
[1755950234882,0.1064,4714.1,4714.0,0.3087]
[1755950235077,0.4151,4714.1,4714.0,0.3087]
[1755950235259,0.4151,4714.1,4713.8,0.02]
[1755950236361,0.4151,4714.1,4713.8,0.488]
[1755950236862,0.4151,4714.1,4713.8,0.02]
[1755950237051,0.0012,4713.9,4713.8,0.02]
[1755950238685,5.24258568,4713.9,4713.8,0.02]
[1755950239072,3.1212,4713.9,4713.8,0.02]
[1755950239284,3.1076,4713.9,4713.8,0.02]
[1755950239472,6.9086,4713.9,4713.8,0.02]
[1755950242360,7.0286,4713.9,4713.8,0.02]
[1755950243300,6.9086,4713.9,4713.8,0.02]
[1755950243506,9.41318568,4713.9,4713.8,0.02]
[1755950244211,7.2588,4713.9,4713.8,0.02]
[1755950244427,7.7484,4713.9,4713.8,0.02]
[1755950244619,7.3652,4713.9,4713.8,0.02]
[1755950244775,3.5712,4713.9,4713.8,0.02]
[1755950245276,7.3622,4713.9,4713.8,0.02]
[1755950245485,7.3622,4713.9,4713.8,0.024]
[1755950246105,9.48358568,4713.9,4713.8,0.024]
[1755950246497,9.86678568,4713.9,4713.8,0.024]
[1755950247985,7.7454,4713.9,4713.8,0.024]
[1755950248222,9.86678568,4713.9,4713.8,0.024]
[1755950250119,9.48358568,4713.9,4713.8,0.024]
[1755950250695,9.86678568,4713.9,4713.8,0.024]
[1755950250900,10.97996238,4713.9,4713.8,0.024]
[1755950252529,0.66,4713.6,4712.8,0.02]
[1755950252702,0.4069,4712.9,4712.8,0.02]
[1755950252904,10.93673581,4712.9,4712.8,0.02]
[1755950253317,11.90664212,4712.9,4712.8,0.02]
[1755950253603,9.78480631,4712.9,4712.8,0.02]
[1755950253799,11.90664212,4712.9,4712.8,0.02]
[1755950254105,12.08754212,4712.9,4712.8,0.02]
[1755950254420,10.44180631,4712.9,4712.8,0.02]
[1755950254725,12.56364212,4712.9,4712.8,0.02]
[1755950255725,12.56464212,4712.9,4712.8,0.02]
[1755950256421,19.48073926,4712.9,4712.8,0.02]
[1755950256589,24.46548733,4712.9,4711.8,4.04572727]
[1755950256790,0.66,4712.0,4711.8,4.04572727]
[1755950256994,9.03793295,4712.2,4711.8,4.04572727]
[1755950256995,7.7403,4711.9,4711.8,4.04572727]
[1755950257396,10.010329,4711.9,4711.8,4.04572727]
[1755950257711,10.013329,4711.9,4711.8,4.04572727]
[1755950260109,6.229329,4711.9,4711.8,4.04572727]
[1755950260309,9.709029,4711.9,4711.8,4.04572727]
[1755950260637,10.04117238,4711.9,4711.8,4.04572727]
[1755950261002,6.26217238,4711.9,4711.8,4.04572727]
[1755950261196,6.36117238,4711.9,4711.8,4.04572727]
[1755950261401,10.04017238,4711.9,4711.8,4.04572727]
[1755950261600,6.26217238,4711.9,4711.8,4.04572727]
[1755950261803,0.97017238,4711.9,4711.8,4.79792727]
[1755950262011,0.33214338,4711.9,4711.8,5.27772]
[1755950262231,4.11014338,4711.9,4711.8,5.27772]
[1755950262430,0.33214338,4711.9,4711.8,5.27772]
[1755950262644,0.637823,4712.3,4711.8,5.27772]
[1755950262828,4.416823,4712.3,4711.9,0.991372]
[1755950263010,4.416823,4712.3,4712.2,0.2886]
[1755950263336,3.779,4712.3,4711.8,4.50932727]
[1755950263537,0.637852,4712.2,4711.8,4.04572727]
[1755950263854,3.778,4712.1,4711.8,4.04572727]
[1755950264144,0.3005,4711.9,4711.8,4.04572727]
[1755950264307,3.778,4711.9,4711.8,4.33432727]
[1755950264645,3.777,4711.9,4711.8,4.79792727]
[1755950265003,13.77543295,4711.9,4711.8,4.04572727]
[1755950265203,17.8811032,4711.9,4711.8,4.04572727]
[1755950265645,18.21327387,4711.9,4711.8,4.04572727]
[1755950266312,11.29762704,4711.9,4711.8,4.04572727]
[1755950266629,11.40402704,4711.9,4711.8,4.04572727]
[1755950266932,11.40402704,4711.9,4709.8,0.02]
[1755950266933,0.66,4711.3,4709.8,0.02]
[1755950267244,3.08323663,4710.9,4709.8,0.02]
[1755950267567,10.60680688,4710.9,4709.8,0.02]
[1755950267703,11.62906331,4710.9,4709.8,0.02]
[1755950267899,11.52650688,4710.9,4709.8,0.02]
[1755950268835,12.09218811,4710.9,4709.8,0.02]
[1755950269007,11.52650688,4710.9,4709.8,0.02]
[1755950269209,11.32993139,4710.9,4709.8,0.02]
[1755950269409,11.52632557,4710.9,4709.8,0.02]
[1755950270042,11.5262261,4710.9,4709.8,0.02]
[1755950270410,12.28103616,4710.9,4709.8,0.02]
[1755950270809,8.40703616,4710.9,4709.8,0.02]
[1755950271036,11.5252261,4710.9,4709.8,0.02]
[1755950271439,11.85750083,4710.9,4709.8,0.02]
[1755950272309,11.85750083,4710.9,4709.8,0.024]
[1755950272507,11.8573317,4710.9,4709.8,0.024]
[1755950273212,12.05337158,4710.9,4709.8,0.024]
[1755950273526,13.18558667,4710.9,4709.8,0.024]
[1755950274346,12.05337158,4710.9,4709.8,0.024]
[1755950274640,3.5677317,4710.9,4710.0,0.4341]
[1755950274837,7.4297317,4710.9,4710.0,0.4341]
[1755950275038,7.4297317,4710.9,4709.8,0.024]
[1755950275039,8.1608317,4710.9,4709.8,0.024]
[1755950275216,9.57353652,4710.9,4709.8,0.024]
[1755950275416,11.8208317,4710.9,4709.8,0.024]
[1755950275616,12.57350689,4710.9,4709.8,0.024]
[1755950276260,11.3929317,4710.9,4709.8,0.024]
[1755950276439,11.3959317,4710.9,4709.9,0.4341]
[1755950276773,8.28366813,4710.9,4709.9,0.4341]
[1755950276946,12.25506813,4710.9,4709.9,0.4341]
[1755950278069,12.3506934,4710.9,4709.9,0.4341]
[1755950278367,12.3506934,4710.9,4709.8,0.024]
[1755950278737,12.35064784,4710.9,4709.8,0.024]
[1755950279377,11.17005601,4710.9,4710.2,0.4341]
[1755950279865,11.92324312,4710.9,4709.8,0.024]
[1755950280052,11.59795601,4710.9,4709.8,0.024]
[1755950280253,11.79414501,4710.9,4709.8,0.024]
[1755950280559,10.86685601,4710.9,4710.8,0.3292]
[1755950280762,11.62031005,4710.9,4710.8,0.3292]
[1755950281071,11.50230373,4710.9,4710.8,0.02]
[1755950281268,12.25575777,4710.9,4710.8,0.02]
[1755950282052,12.68365777,4710.9,4710.8,0.02]
[1755950282367,11.93020373,4710.9,4710.8,0.02]
[1755950282956,11.50230373,4710.9,4710.8,0.02]
[1755950283161,11.48830373,4710.9,4710.8,0.02]
[1755950283358,11.68467132,4710.9,4710.8,0.02]
[1755950284467,2.78318732,4709.9,4709.8,0.4581]
[1755950284678,11.76207953,4709.9,4709.8,0.7673]
[1755950284887,12.21507429,4709.9,4709.8,0.7673]
[1755950285288,12.54735968,4709.9,4709.8,0.7673]
[1755950285456,10.22780477,4709.9,4709.8,0.7673]
[1755950285651,12.35099209,4709.9,4709.8,0.7673]
[1755950285886,10.86610177,4709.9,4709.8,0.7673]
[1755950286187,12.98928909,4709.9,4709.8,0.7673]
[1755950286382,10.36356049,4709.9,4709.8,0.7673]
[1755950286876,6.52156049,4709.9,4709.8,0.7673]
[1755950287206,10.16743587,4709.9,4709.8,0.7673]
[1755950287343,12.48711529,4709.9,4709.8,0.7673]
[1755950287544,13.14711529,4709.9,4709.8,0.3332]
[1755950287768,13.14712495,4709.9,4709.8,0.3332]
[1755950288574,10.03165224,4709.9,4709.8,0.7673]
[1755950288778,12.15483956,4709.9,4709.8,0.7673]
[1755950289789,10.03165224,4709.9,4709.8,0.3332]
[1755950289995,10.03165224,4709.9,4709.8,0.7673]
[1755950290365,10.03170005,4709.9,4709.8,0.7673]
[1755950291186,12.15488737,4709.9,4709.8,0.7673]
[1755950291488,12.81488737,4709.9,4709.8,0.3332]
[1755950291669,13.14716382,4709.9,4709.8,0.024]
[1755950291870,13.14716382,4709.9,4709.8,0.3332]
[1755950292181,13.34376701,4709.9,4709.8,0.3332]
[1755950292382,13.9094543,4709.9,4709.8,0.3332]
[1755950292597,13.9094543,4709.9,4709.8,0.024]
[1755950293191,13.34376701,4709.9,4709.8,0.024]
[1755950294297,2.237,4709.0,4707.8,0.02]
[1755950294499,1.934,4709.5,4706.1,0.003]
[1755950294500,9.06198129,4706.9,4706.1,0.003]
[1755950294670,2.12490172,4706.1,4705.8,1e-08]
[1755950294874,0.66,4703.9,4702.8,0.02]
[1755950295074,16.09077733,4703.9,4702.8,0.02]
[1755950295315,25.89141491,4703.9,4702.8,0.02]
[1755950295610,15.78150532,4703.9,4703.0,0.4341]
[1755950295766,3.66,4703.8,4703.5,0.51424819]
[1755950295960,0.64954433,4703.7,4703.6,0.4341]
[1755950296161,0.64954433,4703.7,4702.9,0.4341]
[1755950296162,0.1556501,4703.7,4702.9,0.4341]
[1755950296361,0.19572741,4703.8,4703.0,0.4341]
[1755950296697,6.936,4703.7,4703.6,0.3092]
[1755950296867,9.42530533,4703.7,4703.6,0.3092]
[1755950297068,9.42530533,4703.7,4703.6,0.7433]
[1755950297570,3.969,4703.7,4703.6,0.7433]
[1755950297765,0.56351299,4705.5,4703.6,0.7433]
[1755950298079,0.638883,4705.3,4703.7,0.4341]
[1755950298301,0.638883,4705.3,4702.8,0.02]
[1755950298302,0.3032,4703.8,4702.8,0.02]
[1755950298509,7.1905,4703.7,4702.8,0.02]
[1755950298815,0.66,4703.2,4702.8,0.02]
[1755950298968,3.9723,4702.9,4702.8,0.02]
[1755950299169,2.12687165,4701.8,4700.0,0.11]
[1755950299478,0.66,4700.9,4700.0,0.11]
[1755950299820,1.634,4703.1,4700.8,0.3272]
[1755950300031,4.5175,4702.8,4700.8,0.3272]
[1755950300318,1.634,4703.1,4700.8,0.02]
[1755950300319,0.55841736,4702.6,4700.8,0.02]
[1755950300517,0.66,4701.7,4700.8,0.02]
[1755950300728,0.66,4701.5,4700.8,0.02]
[1755950300876,0.66,4701.3,4700.8,0.02]
[1755950301072,3.0,4701.1,4700.0,0.11]
[1755950301271,4.079,4701.2,4701.0,0.3072]
[1755950301582,64.108,4702.0,4701.0,0.3072]
[1755950301583,0.33289321,4701.7,4701.0,0.3072]
[1755950302389,3.97233421,4701.7,4701.0,0.3072]
[1755950302609,0.66,4701.6,4701.0,0.3072]
[1755950302903,0.66,4701.6,4700.0,0.11]
[1755950302904,0.9672,4701.6,4700.0,0.11]
[1755950303108,0.4505,4701.5,4700.0,0.11]
[1755950303401,0.4505,4701.5,4700.0,0.114]
[1755950303402,9.371,4701.4,4700.0,0.114]
[1755950303568,0.66,4701.3,4699.5,0.1624]
[1755950303769,4.073,4701.2,4699.5,0.1624]
[1755950304020,1.635,4701.4,4699.5,0.1624]
[1755950304175,3.0,4701.3,4699.5,0.1624]
[1755950304501,3.0,4701.3,4701.2,0.2599]
[1755950304502,4.074,4701.3,4701.2,0.2599]
[1755950305006,3.0,4701.9,4701.2,0.2599]
[1755950305007,0.2599,4701.9,4701.2,0.2599]
[1755950305302,59.0,4702.0,4701.6,0.1064]
[1755950305503,59.0,4702.0,4701.9,0.2599]
[1755950305669,59.0,4702.0,4701.9,0.4223]
[1755950306803,59.0,4702.0,4701.9,0.2599]
[1755950309416,59.0,4702.0,4701.9,0.4223]
[1755950311912,58.95,4702.0,4701.9,0.4223]
[1755950312078,58.95,4702.0,4701.9,0.2599]
[1755950314403,58.95,4702.0,4701.9,0.4223]
[1755950315801,58.95,4702.0,4701.9,0.2599]
[1755950316203,58.95,4702.0,4701.8,0.004]
[1755950317010,58.95,4702.0,4701.9,0.2599]
[1755950317931,58.95,4702.0,4701.9,0.61219]
[1755950319933,58.95,4702.0,4701.9,0.44979]
[1755950320136,58.95,4702.0,4701.9,0.61219]
[1755950320734,58.95,4702.0,4701.9,0.44979]
[1755950321310,58.95,4702.0,4701.9,0.2599]
[1755950321736,58.95,4702.0,4701.8,0.004]
[1755950322610,58.95,4702.0,4701.9,0.2599]
[1755950325040,58.95,4702.0,4701.9,0.4223]
[1755950325739,58.95,4702.0,4701.9,4.4383]
[1755950325908,58.95,4702.0,4701.9,4.88363]
[1755950326239,58.95,4702.0,4701.9,0.3663]
[1755950327544,58.95,4702.0,4701.9,0.5287]
[1755950327736,58.95,4702.0,4701.9,0.3663]
[1755950327938,58.95,4702.0,4701.9,4.3763]
[1755950328440,58.95,4702.0,4701.9,4.5387]
[1755950328640,58.95,4702.0,4701.9,5.15647]
[1755950329612,58.95,4702.0,4701.9,5.81647]
[1755950330060,58.95,4702.0,4701.9,5.71007]
[1755950332952,58.95,4702.0,4701.9,5.52967]
[1755950333519,58.95,4702.0,4701.9,5.69207]
[1755950334158,58.951,4702.0,4701.9,5.69207]
[1755950334368,50.32271336,4702.0,4701.9,5.69207]
[1755950334869,50.32271336,4702.0,4701.9,8.42907]
[1755950335021,45.97655836,4702.0,4701.9,8.42907]
[1755950335221,38.70527681,4702.0,4701.9,8.42907]
[1755950336072,37.34827172,4702.0,4701.9,8.42907]
[1755950336259,29.89731317,4702.0,4701.9,8.42907]
[1755950337061,28.54030808,4702.0,4701.9,8.42907]
[1755950337261,21.26902653,4702.0,4701.9,8.42907]
[1755950338065,19.91202144,4702.0,4701.9,8.42907]
[1755950338268,12.64073989,4702.0,4701.9,8.42907]
[1755950338788,6.07147637,4702.0,4701.9,7.7923]
[1755950338942,4.71447128,4702.0,4701.9,7.7923]
[1755950339342,0.02,4702.8,4702.6,2.897]
[1755950339646,0.02,4703.8,4702.8,1.16]
[1755950339864,0.02,4703.8,4703.0,0.66]
[1755950340066,0.02,4703.8,4703.7,0.1064]
[1755950340269,0.02,4703.8,4703.7,5.7094]
[1755950340439,0.3357,4703.8,4703.7,5.7094]
[1755950340969,0.7975,4703.8,4703.7,5.7094]
[1755950341875,0.7975,4703.8,4703.7,0.2064]
[1755950342176,0.7975,4703.8,4703.7,0.1]
[1755950343642,0.7975,4703.8,4703.7,1.734]
[1755950343848,0.7975,4703.8,4703.7,5.698]
[1755950345362,0.02,4703.8,4703.7,5.698]
[1755950346060,0.02,4703.8,4703.7,6.6179]
[1755950346856,0.02,4703.8,4703.7,6.358]
[1755950347800,0.02,4703.8,4703.7,6.6179]
[1755950347958,0.02,4703.8,4703.7,7.4363172]
[1755950348770,0.02,4703.8,4703.7,6.7619172]
[1755950348971,0.02,4703.8,4703.7,7.4243172]
[1755950352097,0.02,4703.8,4703.7,7.5307172]
[1755950353913,0.02,4703.8,4703.7,7.5137172]
[1755950354611,0.02,4703.8,4703.7,3.5787172]
[1755950354816,0.02,4703.8,4703.7,7.5107172]
[1755950355815,0.02,4703.8,4703.7,5.9254172]
[1755950356180,0.7975,4703.8,4703.7,1.8404]
[1755950356378,0.7975,4703.8,4703.7,5.7674]
[1755950356814,0.02,4703.8,4703.7,6.4209]
[1755950357112,0.02,4703.8,4703.7,7.23942305]
[1755950357822,0.02,4703.8,4703.7,2.81242305]
[1755950358024,0.3357,4703.8,4703.7,3.05252305]
[1755950358186,0.7975,4703.8,4703.7,6.48252305]
[1755950358389,0.7975,4703.8,4703.7,5.664]
[1755950358599,0.02,4703.8,4703.7,5.664]
[1755950358996,0.02,4703.8,4703.7,1.734]
[1755950359198,0.02,4703.8,4703.7,5.663]
[1755950359410,0.02,4703.8,4703.7,1.734]
[1755950359628,0.02,4703.8,4703.7,6.321]
[1755950360030,0.02,4703.8,4703.7,6.5809]
[1755950360534,0.3115,4703.8,4703.7,6.32]
[1755950360697,0.7405,4703.8,4703.7,6.32]
[1755950361423,0.7405,4703.8,4703.7,6.318]
[1755950362234,0.7405,4703.8,4703.7,0.1]
[1755950362472,0.7405,4703.8,4703.7,5.653]
[1755950363314,0.7405,4703.8,4703.7,1.734]
[1755950363641,0.7405,4703.8,4703.7,5.65]
[1755950365638,0.7405,4703.8,4703.7,5.649]
[1755950365840,0.7405,4703.8,4703.7,5.643]
[1755950366745,0.7405,4703.8,4703.7,5.641]
[1755950366926,0.7405,4703.8,4703.7,5.7474]
[1755950367434,0.7415,4703.8,4703.7,5.7474]
[1755950369037,0.3125,4703.8,4703.7,5.7474]
[1755950369236,0.021,4703.8,4703.7,6.4074]
[1755950369536,0.021,4703.8,4703.7,6.6673]
[1755950369840,0.021,4703.8,4703.7,6.4074]
[1755950370246,0.021,4703.8,4703.7,6.6673]
[1755950371446,0.7415,4703.8,4703.7,5.7334]
[1755950372146,0.3125,4703.8,4703.7,5.7334]
[1755950372347,0.7415,4703.8,4703.7,5.7334]
[1755950372845,0.021,4703.8,4703.7,6.6533]
[1755950373920,0.021,4703.8,4703.7,11.2344917]
[1755950375025,0.021,4703.8,4703.7,7.47451034]
[1755950375346,0.021,4703.8,4703.7,11.7344917]
[1755950376630,0.021,4703.8,4703.7,11.8196157]
[1755950376835,0.021,4703.8,4703.7,14.0566157]
[1755950377044,0.021,4704.8,4704.3,0.5]
[1755950377347,0.021,4704.8,4704.7,1.4199]
[1755950377545,0.021,4704.8,4704.7,7.0393]
[1755950377714,0.021,4704.8,4704.7,3.1603]
[1755950377917,0.021,4704.8,4704.7,7.0383]
[1755950378448,0.021,4704.8,4704.7,3.1603]
[1755950378637,0.021,4704.8,4704.7,7.0363]
[1755950378824,0.021,4704.8,4704.7,3.1603]
[1755950379024,0.021,4704.8,4704.7,7.0353]
[1755950379226,0.021,4704.8,4704.7,7.0343]
[1755950379437,0.021,4704.8,4704.7,3.1603]
[1755950379639,0.021,4704.8,4704.7,7.0333]
[1755950380041,0.429,4707.4,4705.6,0.5]
[1755950380230,0.429,4707.4,4706.0,1.0263]
[1755950380441,0.429,4707.4,4706.0,5.15923499]
[1755950380752,0.449,4707.8,4706.0,5.82163499]
[1755950381052,0.449,4707.8,4706.0,8.48763499]
[1755950381246,0.449,4707.8,4706.0,8.2297]
[1755950381631,0.001,4707.1,4706.0,4.3547]
[1755950381952,0.001,4707.1,4706.0,5.9897]
[1755950382318,0.001,4707.1,4706.5,0.66]
[1755950382523,0.001,4707.1,4706.7,0.9199]
[1755950382751,0.001,4707.1,4706.7,4.8973]
[1755950382954,0.001,4707.1,4706.7,5.0597]
[1755950383154,0.001,4707.1,4706.7,4.8973]
[1755950383461,0.001,4707.1,4706.7,0.92729436]
[1755950383752,0.001,4707.1,4706.7,5.05619436]
[1755950386744,0.001,4707.1,4706.7,5.24529436]
[1755950387256,0.001,4707.1,4706.7,1.37629436]
[1755950387466,0.001,4707.1,4706.7,5.23729436]
[1755950388558,0.001,4707.1,4706.7,5.49719436]
[1755950388962,0.001,4707.1,4706.7,26.54869704]
[1755950389148,0.001,4707.1,4706.7,26.12401836]
[1755950390559,0.001,4707.1,4706.7,25.61901836]
[1755950390927,0.001,4707.1,4706.7,26.11901836]
[1755950391125,0.001,4707.1,4706.7,26.28141836]
[1755950391326,0.001,4707.1,4706.7,26.37695335]
[1755950391562,0.001,4707.1,4706.9,0.66]
[1755950391733,0.001,4707.1,4707.0,4.7739]
[1755950391930,0.001,4707.1,4707.0,4.8803]
[1755950392135,0.001,4707.1,4707.0,5.0427]
[1755950392428,0.001,4707.3,4707.0,5.0427]
[1755950392429,0.001,4707.3,4707.1,0.66]
[1755950392633,0.001,4707.3,4707.2,4.7719]
[1755950392861,0.001,4707.3,4707.2,4.7709]
[1755950393057,0.001,4707.3,4707.2,0.9199]
[1755950393261,0.001,4707.3,4707.2,4.7709]
[1755950393647,0.001,4707.3,4707.2,5.2387]
[1755950394153,0.001,4707.3,4707.2,1.3877]
[1755950394460,0.001,4707.3,4707.2,5.2347]
[1755950396665,0.001,4707.3,4707.2,5.3971]
[1755950396863,0.001,4707.3,4707.2,7.6341]
[1755950397247,0.02,4707.8,4707.7,2.897]
[1755950397451,0.02,4707.8,4707.7,8.7353]
[1755950397881,0.02,4707.8,4707.7,9.2031]
[1755950400052,0.001,4708.3,4707.7,9.2031]
[1755950400053,0.001,4708.3,4707.9,2.897]
[1755950400387,0.02,4708.8,4708.4,2.237]
[1755950400571,0.02,4708.8,4708.7,2.897]
[1755950400771,0.02,4708.8,4708.7,9.7394]
[1755950400984,0.02,4708.8,4708.7,13.8323]
[1755950401479,0.3194,4708.8,4708.7,9.7394]
[1755950401664,0.7872,4708.8,4708.7,13.5714]
[1755950401866,0.02,4708.8,4708.7,13.8313]
[1755950402251,0.02,4708.8,4708.7,13.7249]
[1755950402456,0.02,4708.8,4708.7,13.8313]
[1755950402857,0.02,4708.8,4708.7,10.2072]
[1755950403083,0.02,4708.8,4708.7,14.0352]
[1755950403786,0.02,4708.8,4708.7,14.2951]
[1755950404871,0.4678,4710.1,4710.0,0.66]
[1755950405072,0.7672,4710.1,4710.0,10.35398136]
[1755950405274,0.7672,4710.1,4710.0,6.63838136]
[1755950405484,0.7672,4710.1,4710.0,10.46038136]
[1755950407628,0.7672,4710.1,4710.0,10.62229469]
[1755950408209,0.7672,4710.1,4710.0,6.38231333]
[1755950411416,0.4678,4710.7,4710.1,0.66]
[1755950411636,0.4678,4710.7,4710.3,0.66]
[1755950411833,0.2695,4710.8,4710.0,2.53790233]
[1755950411834,0.2695,4710.8,4710.6,0.1064]
[1755950412018,0.2695,4710.8,4710.7,4.467]
[1755950412213,0.5689,4710.8,4710.7,4.467]
[1755950412517,1.0367,4710.8,4710.7,4.466]
[1755950413073,1.0367,4710.8,4710.7,0.66]
[1755950413216,1.0367,4710.8,4710.6,0.1064]
[1755950413565,0.5689,4710.8,4710.7,0.66]
[1755950413750,0.5689,4710.8,4710.7,3.804]
[1755950413951,1.0367,4710.8,4710.7,3.804]
[1755950414155,1.0367,4710.8,4710.6,0.1064]
[1755950414463,0.4678,4710.7,4710.6,0.1064]
[1755950414687,0.7672,4710.7,4710.6,3.9084]
[1755950415940,0.7672,4710.7,4710.6,4.5684]
[1755950416336,0.2994,4710.7,4710.6,4.5684]
[1755950416538,0.2695,4710.8,4710.7,0.66]
[1755950416871,0.2695,4710.8,4710.7,6.0209]
[1755950417232,0.2695,4710.8,4710.7,6.1833]
[1755950417432,0.0584,4710.9,4710.7,8.4203]
[1755950417747,0.0584,4710.9,4710.7,6.0209]
[1755950417935,0.0584,4710.9,4710.8,0.2599]
[1755950418253,0.0584,4710.9,4710.8,4.459]
[1755950418978,0.7795,4710.9,4710.8,0.66]
[1755950419179,0.7795,4710.9,4710.8,4.459]
[1755950419389,0.7795,4710.9,4710.8,3.797]
[1755950419543,0.7795,4710.9,4710.8,4.457]
[1755950419747,0.7795,4710.9,4710.7,5.101]
[1755950420063,0.7795,4710.9,4710.8,3.797]
[1755950420064,0.3462,4710.9,4710.8,3.797]
[1755950420254,0.3472,4710.9,4710.8,3.797]
[1755950420449,0.7805,4710.9,4710.8,3.797]
[1755950420649,0.7805,4710.9,4710.8,4.5634]
[1755950421245,0.7805,4710.9,4710.8,4.5604]
[1755950421451,0.7805,4710.9,4710.8,0.7664]
[1755950421657,0.7805,4710.9,4710.8,4.5604]
[1755950421883,0.7805,4710.9,4710.8,0.7664]
[1755950422383,0.7805,4710.9,4710.8,4.5584]
[1755950423456,0.0594,4710.9,4710.8,4.5584]
[1755950423661,0.0594,4710.9,4710.8,4.5784]
[1755950425373,0.0594,4710.9,4710.8,4.472]
[1755950425567,0.0594,4710.9,4710.8,4.8383]
[1755950427904,0.001,4711.1,4711.0,2.897]
[1755950428086,0.001,4711.1,4711.0,8.5739]
[1755950429095,0.001,4711.1,4711.0,6.3369]
[1755950429296,0.001,4711.1,4711.0,6.077]
[1755950429501,0.7221,4711.1,4711.0,5.412]
[1755950430479,0.001,4711.1,4711.0,6.072]
[1755950430674,0.7221,4711.1,4711.0,6.071]
[1755950431277,0.001,4711.1,4711.0,6.1774]
[1755950431796,0.001,4711.1,4711.0,6.4373]
[1755950432401,0.001,4711.9,4711.1,0.66]
[1755950432699,0.001,4711.9,4711.7,0.7664]
[1755950433000,0.001,4711.9,4711.7,4.5424]
[1755950433679,0.7421,4711.8,4711.7,0.7664]
[1755950433888,0.7421,4711.8,4711.7,3.8794]
[1755950434598,0.7421,4711.8,4711.7,4.5394]
[1755950434800,0.7421,4711.8,4711.7,3.8784]
[1755950435302,0.7421,4711.8,4711.7,3.8774]
[1755950435510,0.7421,4711.8,4711.7,0.1064]
[1755950435870,0.7421,4711.8,4711.7,3.8764]
[1755950436309,0.7421,4711.8,4711.0,1.632]
[1755950436602,0.4333,4711.7,4711.5,0.1064]
[1755950436794,0.4333,4711.7,4711.6,3.769]
[1755950436995,0.7211,4711.7,4711.6,3.769]
[1755950437533,0.7211,4711.7,4711.6,3.8754]
[1755950438272,0.7211,4711.7,4711.6,0.1064]
[1755950438477,0.7211,4711.7,4711.6,3.8784]
[1755950438677,0.7211,4711.7,4711.6,0.1064]
[1755950438879,0.7211,4711.7,4711.6,3.8774]
[1755950439080,0.7211,4711.7,4711.0,1.632]
[1755950439277,0.4333,4711.6,4711.3,3.8774]
[1755950439478,0.3942,4711.4,4710.8,3.771]